bitfinex-derivatives/quotes_ETHF0:USTF0_20260118
["timestamp","ask_amount","ask_price","bid_price","bid_amount"]
[1768703790174,2.98569905,3299.5,3297.7,0.21636154]
[1768703790380,2.98569905,3299.5,3297.8,0.21636154]
[1768703790875,2.98569905,3299.4,3297.8,0.21636154]
[1768703791583,0.00253821,3299.6,3297.8,0.21636154]
[1768703791768,2.98823726,3299.6,3297.8,0.21636154]
[1768703792382,2.98823726,3299.6,3297.8,0.36804154]
[1768703792678,2.98823726,3299.6,3297.9,0.21636154]
[1768703792876,0.00253821,3299.6,3298.1,0.21636154]
[1768703793281,2.98569905,3299.5,3298.1,0.36802154]
[1768703793479,0.00253821,3299.6,3298.4,0.21636154]
[1768703794569,0.00253821,3299.6,3298.5,0.30144512]
[1768703797184,0.00253821,3299.6,3298.6,0.30144512]
[1768703797678,0.5976332,3301.0,3298.6,0.30144512]
[1768703797880,2.98569905,3300.7,3298.8,0.30144512]
[1768703798085,2.98569905,3300.9,3298.8,0.30144512]
[1768703798272,2.98569905,3300.6,3298.8,0.45307512]
[1768703798478,2.98569905,3300.6,3298.9,0.30144512]
[1768703798788,2.98569905,3300.4,3298.9,0.30144512]
[1768703799178,2.98569905,3300.3,3298.9,0.30144512]
[1768703799378,0.00324495,3300.6,3299.1,0.30144512]
[1768703799379,2.98569905,3300.4,3299.1,0.30144512]
[1768703799585,0.00324495,3300.6,3299.1,0.30144512]
[1768703799786,2.98569905,3300.3,3299.1,0.30144512]
[1768703800385,2.98569905,3300.1,3299.1,0.30144512]
[1768703800578,2.98569905,3300.3,3299.1,0.30144512]
[1768703801390,2.98569905,3300.2,3299.1,0.30144512]
[1768703801579,2.98569905,3300.3,3299.1,0.30144512]
[1768703802482,0.00324495,3300.6,3299.1,0.30144512]
[1768703802685,2.98569905,3300.3,3299.1,0.30144512]
[1768703803179,0.00324495,3300.6,3299.1,0.30144512]
[1768703803380,2.98569905,3300.3,3299.1,0.30144512]
[1768703804087,2.98569905,3300.1,3299.1,0.30144512]
[1768703804287,2.98569905,3300.3,3299.1,0.30144512]
[1768703804689,2.98569905,3300.2,3299.1,0.30144512]
[1768703804986,2.98569905,3300.3,3299.1,0.30144512]
[1768703805580,2.98569905,3300.2,3299.1,0.30144512]
[1768703805780,2.98569905,3300.3,3299.1,0.30144512]
[1768703805982,2.98569905,3300.2,3299.1,0.30144512]
[1768703806184,2.98569905,3300.3,3299.1,0.30144512]
[1768703806788,2.98569905,3300.2,3299.1,0.30144512]
[1768703806987,2.98569905,3300.3,3299.1,0.30144512]
[1768703807377,0.00324495,3300.6,3299.0,0.15162]
[1768703807581,2.98569905,3300.1,3299.0,0.15162]
[1768703807988,2.98569905,3299.8,3299.0,0.15162]
[1768703808176,2.98569905,3300.1,3299.0,0.15162]
[1768703808580,2.98569905,3299.8,3299.0,0.15162]
[1768703808886,2.98569905,3300.1,3299.0,0.15162]
[1768703809591,2.98569905,3299.8,3299.0,0.15162]
[1768703809781,2.98569905,3300.1,3299.0,0.15162]
[1768703810492,2.98569905,3299.8,3299.0,0.15162]
[1768703810682,2.98569905,3300.1,3299.0,0.15162]
[1768703811394,2.98569905,3299.8,3299.0,0.15162]
[1768703811692,0.00324495,3300.6,3299.0,0.15162]
[1768703811884,2.98569905,3300.0,3299.0,0.15162]
[1768703812393,2.98569905,3299.7,3299.0,0.15162]
[1768703812695,2.98569905,3300.0,3298.7,0.30144512]
[1768703812990,2.98569905,3300.2,3298.7,0.30144512]
[1768703813387,2.98569905,3300.1,3298.7,0.30144512]
[1768703813586,0.25073832,3300.6,3298.7,0.30144512]
[1768703813794,2.98569905,3300.2,3298.7,0.30144512]
[1768703814287,2.98569905,3300.1,3298.7,0.30144512]
[1768703814684,2.98569905,3299.9,3298.7,0.30144512]
[1768703814984,2.98569905,3300.1,3298.7,0.30144512]
[1768703815185,2.98569905,3299.8,3298.7,0.30144512]
[1768703815394,0.25073832,3300.6,3298.7,0.30144512]
[1768703815888,2.98569905,3299.8,3298.7,0.30144512]
[1768703816093,0.25073832,3300.6,3298.7,0.30144512]
[1768703816094,2.98569905,3299.6,3298.7,0.30144512]
[1768703816590,0.25880047,3300.3,3298.7,0.30144512]
[1768703816794,2.98569905,3299.5,3298.7,0.30144512]
[1768703817196,2.98569905,3299.1,3298.7,0.30144512]
[1768703817497,2.98569905,3299.5,3298.7,0.30144512]
[1768703817799,2.98569905,3299.6,3298.7,0.30144512]
[1768703818484,2.98569905,3299.2,3298.7,0.30144512]
[1768703818687,2.98569905,3299.8,3298.7,0.30144512]
[1768703818996,2.98569905,3299.9,3298.7,0.30144512]
[1768703819385,0.00324495,3300.6,3298.7,0.30144512]
[1768703819386,2.98569905,3299.6,3298.7,0.30144512]
[1768703819684,2.98569905,3299.9,3298.7,0.30144512]
[1768703820097,2.98569905,3299.6,3298.7,0.30144512]
[1768703820297,2.98569905,3299.9,3298.7,0.30144512]
[1768703820490,2.98569905,3299.8,3298.7,0.30144512]
[1768703820795,2.98569905,3299.7,3298.3,0.46696332]
[1768703820995,2.98569905,3299.8,3298.3,0.46696332]
[1768703821190,2.98569905,3299.7,3298.3,0.46696332]
[1768703821392,2.98569905,3299.7,3298.4,0.31530332]
[1768703821592,2.98569905,3299.6,3298.4,0.31530332]
[1768703821794,2.98569905,3300.0,3298.4,0.31530332]
[1768703821996,2.98569905,3300.1,3298.5,0.31530332]
[1768703822491,2.98569905,3299.8,3298.5,0.31530332]
[1768703822692,2.98569905,3300.1,3298.5,0.31530332]
[1768703823192,0.27810779,3300.5,3298.5,0.31530332]
[1768703823394,2.98569905,3299.7,3298.5,0.31530332]
[1768703823784,2.98569905,3299.3,3298.5,0.31530332]
[1768703823988,2.98569905,3299.6,3298.5,0.31530332]
[1768703824698,2.98569905,3299.2,3298.5,0.31530332]
[1768703824898,2.98569905,3299.6,3298.5,0.31530332]
[1768703825394,2.98569905,3299.2,3298.5,0.8301112]
[1768703825596,2.98569905,3299.5,3298.5,0.8301112]
[1768703826000,2.98569905,3299.1,3298.5,0.8301112]
[1768703826303,2.98569905,3299.5,3298.5,0.8301112]
[1768703826699,2.98569905,3299.1,3298.5,0.8301112]
[1768703826890,2.98569905,3299.5,3298.5,0.8301112]
[1768703827698,2.98569905,3299.1,3298.5,0.8301112]
[1768703827900,2.98569905,3299.5,3298.5,0.8301112]
[1768703828800,2.98569905,3299.1,3298.5,0.8301112]
[1768703828992,2.98569905,3299.5,3298.5,0.8301112]
[1768703829387,2.98569905,3299.1,3298.5,0.8301112]
[1768703829593,2.98569905,3299.6,3298.5,0.8301112]
[1768703829902,2.98569905,3299.4,3298.2,0.8301112]
[1768703830203,2.98569905,3299.6,3298.2,0.8301112]
[1768703830399,2.98569905,3299.5,3298.2,0.8301112]
[1768703830905,2.98569905,3298.9,3297.9,0.8301112]
[1768703831206,3.28762254,3299.7,3297.9,0.8301112]
[1768703831398,3.28762254,3299.7,3297.9,1.14541452]
[1768703831399,3.9668528,3299.3,3297.9,1.14541452]
[1768703831705,2.98569905,3299.2,3297.9,1.14541452]
[1768703831908,2.98569905,3298.9,3297.9,1.14541452]
[1768703832206,2.98569905,3299.0,3297.9,1.14541452]
[1768703832595,2.98569905,3298.8,3297.9,1.14541452]
[1768703832803,2.98569905,3299.0,3297.9,1.14541452]
[1768703833011,2.98569905,3298.9,3297.9,1.14541452]
[1768703833399,2.98569905,3298.7,3297.9,1.14541452]
[1768703833602,2.98569905,3298.9,3297.9,1.14541452]
[1768703834008,2.98569905,3298.7,3297.9,1.14541452]
[1768703834207,2.98569905,3298.8,3297.9,1.14541452]
[1768703834404,2.98569905,3298.8,3297.9,0.8301112]
[1768703834601,0.98115375,3299.1,3297.9,0.8301112]
[1768703834602,2.98569905,3298.6,3297.9,0.8301112]
[1768703834810,2.98569905,3298.8,3297.9,0.8301112]
[1768703835609,2.98569905,3298.6,3297.9,0.8301112]
[1768703835803,2.98569905,3299.1,3298.0,0.8301112]
[1768703836002,3.9668528,3299.2,3298.0,0.8301112]
[1768703836205,2.98569905,3298.8,3298.0,0.8301112]
[1768703836503,0.98115375,3299.2,3298.0,0.8301112]
[1768703836703,2.98569905,3298.8,3298.0,0.8301112]
[1768703836907,0.98115375,3299.2,3298.0,0.8301112]
[1768703837106,2.98569905,3298.8,3298.0,0.8301112]
[1768703837512,0.98115375,3299.2,3298.0,0.8301112]
[1768703837914,2.98569905,3298.8,3298.0,0.8301112]
[1768703838212,2.98569905,3298.7,3298.0,0.8301112]
[1768703838406,2.98569905,3298.8,3298.0,0.8301112]
[1768703838813,0.98115375,3299.2,3298.0,0.8301112]
[1768703839017,2.98569905,3298.8,3298.0,0.8301112]
[1768703839308,0.98115375,3299.2,3298.0,0.8301112]
[1768703839511,2.98569905,3298.7,3298.0,0.8301112]
[1768703839905,2.98569905,3298.5,3298.0,0.8301112]
[1768703840113,2.98569905,3298.7,3298.0,0.8301112]
[1768703840909,2.98569905,3298.4,3297.6,0.8301112]
[1768703841105,3.30188664,3299.3,3297.6,0.8301112]
[1768703841302,0.98115375,3298.8,3297.6,0.8301112]
[1768703841702,2.98569905,3298.7,3297.6,0.8301112]
[1768703842109,0.98115375,3298.8,3297.6,1.17707601]
[1768703842310,2.98569905,3298.7,3297.6,1.17707601]
[1768703842699,2.98569905,3298.6,3298.0,1.32811856]
[1768703842899,2.98569905,3299.2,3298.1,0.34696481]
[1768703843103,2.98569905,3299.0,3298.1,0.34696481]
[1768703843306,2.98569905,3298.8,3298.1,0.34696481]
[1768703843808,0.48022984,3299.9,3298.1,0.34696481]
[1768703844013,2.98569905,3299.0,3298.1,0.34696481]
[1768703844214,2.98569905,3299.3,3298.2,1.32811856]
[1768703844404,0.98115375,3299.7,3298.3,0.34696481]
[1768703844405,2.98569905,3299.6,3298.3,0.34696481]
[1768703844610,2.98569905,3299.1,3298.3,0.34696481]
[1768703845013,2.98569905,3298.8,3298.3,0.34696481]
[1768703845312,2.98569905,3299.2,3298.4,1.32811856]
[1768703845512,0.98115375,3300.0,3298.4,1.32811856]
[1768703845713,2.98569905,3299.6,3298.4,1.32811856]
[1768703845918,2.98569905,3299.4,3298.5,0.34696481]
[1768703846211,2.98569905,3299.4,3298.7,0.98115375]
[1768703846413,2.98569905,3299.1,3298.7,1.32811856]
[1768703846614,1.63411925,3299.2,3298.8,0.34696481]
[1768703846811,1.63411925,3299.3,3298.8,0.34696481]
[1768703847004,1.63411925,3299.4,3298.8,0.34696481]
[1768703847409,0.33150984,3300.5,3298.9,0.34696481]
[1768703847410,0.98115375,3300.3,3298.9,0.34696481]
[1768703847611,1.63411925,3299.7,3299.0,0.34696481]
[1768703847813,1.63411925,3299.6,3299.0,0.34696481]
[1768703848012,1.63411925,3299.5,3299.0,0.34696481]
[1768703848422,1.63411925,3299.1,3299.0,0.34696481]
[1768703848616,1.63411925,3299.5,3299.0,0.34696481]
[1768703849016,1.63411925,3299.1,3299.0,0.34696481]
[1768703849215,0.33150984,3300.5,3298.8,0.8301112]
[1768703849216,1.63411925,3299.6,3298.8,0.8301112]
[1768703849415,1.63411925,3299.7,3298.8,0.8301112]
[1768703849621,1.63411925,3299.4,3298.8,0.8301112]
[1768703850119,1.63411925,3299.1,3298.9,0.34696481]
[1768703850318,1.63411925,3299.5,3298.9,0.34696481]
[1768703850516,1.63411925,3299.4,3298.9,0.34696481]
[1768703850922,0.98115375,3300.1,3298.9,0.34696481]
[1768703850923,1.63411925,3299.1,3298.9,0.34696481]
[1768703851122,1.63411925,3299.4,3298.9,0.34696481]
[1768703851819,1.63411925,3299.1,3298.9,0.34696481]
[1768703852024,1.63411925,3299.6,3298.9,1.32811856]
[1768703852320,1.63411925,3299.5,3298.9,1.32811856]
[1768703852725,1.63411925,3299.1,3298.9,1.32811856]
[1768703852915,1.63411925,3299.5,3298.9,1.32811856]
[1768703853117,0.35741069,3300.1,3298.8,0.8301112]
[1768703853423,0.84748801,3299.6,3299.0,0.98115375]
[1768703853625,0.84748801,3299.8,3298.9,0.8301112]
[1768703853927,0.84748801,3299.4,3298.9,1.81126495]
[1768703854126,0.84748801,3299.4,3298.9,0.98115375]
[1768703854326,0.35741069,3300.1,3298.9,0.98115375]
[1768703854327,0.84748801,3299.1,3298.9,0.98115375]
[1768703854520,0.84748801,3299.4,3298.9,0.98115375]
[1768703854722,0.35741069,3300.1,3298.9,0.98115375]
[1768703857333,0.35741069,3300.1,3299.1,0.98115375]
[1768703858923,0.39019967,3299.8,3298.5,1.81126495]
[1768703861132,0.39019967,3299.8,3298.8,0.98115375]
[1768703862139,0.39019967,3299.8,3298.9,0.8301112]
[1768703867738,0.39019967,3299.8,3298.9,1.81126495]
[1768703868042,0.39019967,3299.8,3299.0,0.8301112]
[1768703877846,0.39019967,3299.8,3298.8,0.98115375]
[1768703881254,0.39019967,3299.8,3298.5,0.8301112]
[1768703881557,0.39019967,3299.8,3298.5,1.81126495]
[1768703881758,0.39019967,3299.8,3298.5,3.50826495]
[1768703882758,0.39019967,3299.8,3298.6,0.8301112]
[1768703882955,0.41872059,3299.7,3298.6,0.8301112]
[1768703883957,0.98115375,3299.4,3298.6,0.8301112]
[1768703884155,0.41872059,3299.5,3298.3,0.8301112]
[1768703888566,0.41872059,3299.5,3298.4,0.8301112]
[1768703891764,0.41872059,3299.5,3298.2,1.697]
[1768703903164,0.41872059,3299.5,3297.7,0.57525275]
[1768703903356,0.41872059,3299.5,3297.8,0.8301112]
[1768703909262,0.98099338,3299.8,3297.8,0.8301112]
[1768703909263,0.50404633,3299.3,3297.8,0.8301112]
[1768703911177,0.50404633,3299.8,3297.9,0.48551221]
[1768703911474,0.92786482,3299.7,3298.3,0.98099338]
[1768703911672,0.50404633,3299.8,3298.3,0.98099338]
[1768703912475,0.50404633,3299.5,3297.6,1.697]
[1768703912670,0.50404633,3299.3,3297.6,1.697]
[1768703912974,0.50404633,3299.1,3297.6,1.697]
[1768703915669,0.51765635,3299.7,3297.7,0.49338643]
[1768703915976,0.9277814,3299.6,3297.7,0.49338643]
[1768703916165,0.51765635,3299.7,3297.7,0.49338643]
[1768703916360,0.92786116,3299.6,3297.7,0.49338643]
[1768703916567,0.51765635,3299.7,3297.7,0.49338643]
[1768703916766,0.92786099,3299.6,3297.7,0.49338643]
[1768703917065,0.51765635,3299.7,3297.7,0.49338643]
[1768703917270,0.92786099,3299.6,3297.7,0.49338643]
[1768703917576,0.51765635,3299.7,3297.7,0.49338643]
[1768703917875,0.92787439,3299.6,3297.7,0.49338643]
[1768703918074,0.51765635,3299.7,3297.7,0.49338643]
[1768703918378,0.92787602,3299.6,3297.7,0.49338643]
[1768703918678,0.51765635,3299.7,3297.7,0.49338643]
[1768703918867,0.92789115,3299.6,3297.7,0.49338643]
[1768703919071,0.51765635,3299.7,3297.7,0.49338643]
[1768703919270,0.92789055,3299.6,3297.7,0.49338643]
[1768703919579,0.51765635,3299.7,3297.7,0.49338643]
[1768703919774,0.92794758,3299.6,3297.7,0.49338643]
[1768703919974,0.51765635,3299.7,3297.7,0.49338643]
[1768703920172,0.92623039,3299.6,3297.7,0.49338643]
[1768703920376,0.51765635,3299.7,3297.7,0.49338643]
[1768703921479,0.51765635,3299.7,3298.0,1.47437981]
[1768703924284,0.92650481,3299.6,3298.0,1.47437981]
[1768703924482,0.51765635,3299.7,3298.0,1.47437981]
[1768703924682,0.92649394,3299.6,3298.0,1.47437981]
[1768703924981,0.51765635,3299.7,3298.0,1.47437981]
[1768703925179,0.92648984,3299.6,3298.0,1.47437981]
[1768703925479,0.51765635,3299.7,3298.0,1.47437981]
[1768703925680,0.92655017,3299.6,3298.0,1.47437981]
[1768703925878,0.51765635,3299.7,3298.0,1.47437981]
[1768703926079,0.92655022,3299.6,3298.0,1.47437981]
[1768703926279,0.51765635,3299.7,3298.0,1.47437981]
[1768703926481,0.92657015,3299.6,3298.0,1.47437981]
[1768703926681,0.51765635,3299.7,3298.0,1.47437981]
[1768703926882,0.92657021,3299.6,3298.0,1.47437981]
[1768703927082,0.51765635,3299.7,3298.0,1.47437981]
[1768703927282,0.92656675,3299.6,3298.0,1.47437981]
[1768703927484,0.51765635,3299.7,3298.0,1.47437981]
[1768703927686,0.92657997,3299.6,3298.0,1.47437981]
[1768703927886,0.51765635,3299.7,3298.0,1.47437981]
[1768703928089,0.92657928,3299.6,3298.0,1.47437981]
[1768703928275,0.51765635,3299.7,3298.0,1.47437981]
[1768703928477,0.92659213,3299.6,3298.0,1.47437981]
[1768703928680,0.51765635,3299.7,3298.0,1.47437981]
[1768703929188,0.51765635,3300.1,3298.1,0.49338643]
[1768703929390,0.51765635,3299.9,3298.1,0.49338643]
[1768703929592,0.51765635,3299.7,3298.1,0.49338643]
[1768703930184,0.51765635,3299.7,3298.0,0.98099338]
[1768703935295,0.92662204,3299.6,3298.0,0.98099338]
[1768703935486,0.51765635,3299.7,3298.0,0.98099338]
[1768703935682,0.92662279,3299.6,3298.0,0.98099338]
[1768703935898,0.51765635,3299.7,3298.0,0.98099338]
[1768703936099,0.92663732,3299.6,3298.0,0.98099338]
[1768703936288,1.47114666,3299.5,3298.0,0.98099338]
[1768703936598,0.54450934,3299.5,3298.0,0.98099338]
[1768703938397,0.54450934,3299.5,3298.1,0.8301112]
[1768703941600,0.54450934,3299.5,3298.0,1.48491954]
[1768703942803,0.54450934,3299.9,3298.1,0.50392616]
[1768703943003,0.92711319,3299.8,3298.1,0.50392616]
[1768703943207,0.92711319,3299.7,3298.4,0.98099338]
[1768703943499,0.54450934,3299.9,3298.4,0.98099338]
[1768703943699,0.92743139,3299.8,3298.4,0.98099338]
[1768703943900,0.92743139,3299.7,3298.4,0.98099338]
[1768703944102,0.54450934,3299.9,3298.4,0.98099338]
[1768703944303,0.92742896,3299.8,3298.4,0.98099338]
[1768703944491,0.54450934,3299.9,3298.4,0.98099338]
[1768703944694,0.92785169,3299.8,3298.4,0.98099338]
[1768703944904,0.54450934,3299.9,3298.4,0.98099338]
[1768703945108,0.92784906,3299.8,3298.4,0.98099338]
[1768703945303,0.54450934,3299.9,3298.4,0.98099338]
[1768703945500,0.92825557,3299.8,3298.4,1.48491954]
[1768703945706,0.54450934,3300.3,3298.5,0.50392616]
[1768703946001,1.47277599,3300.2,3298.5,0.50392616]
[1768703946200,0.92826665,3300.1,3298.5,0.50392616]
[1768703947307,0.92826665,3300.1,3298.9,0.98059547]
[1768703950134,0.92826665,3300.1,3298.8,0.98059547]
[1768703950306,1.47277599,3300.1,3298.8,0.98059547]
[1768703950496,0.92826665,3300.0,3298.8,0.98059547]
[1768703950701,0.54450934,3300.1,3298.8,0.98059547]
[1768703950904,0.92653981,3300.0,3298.8,0.98059547]
[1768703951103,0.54450934,3300.1,3298.8,0.98059547]
[1768703951405,0.92654021,3300.0,3298.8,0.98059547]
[1768703951607,0.54450934,3300.1,3298.8,0.98059547]
[1768703951807,1.47096277,3300.0,3298.8,0.98059547]
[1768703952013,1.52510481,3299.9,3298.6,0.98059547]
[1768703953212,0.54450934,3300.3,3298.4,0.50392616]
[1768703953406,0.92635547,3300.2,3299.4,0.98059547]
[1768703953703,0.54450934,3300.3,3299.4,0.98059547]
[1768703954300,0.54450934,3300.3,3299.2,0.98059547]
[1768703960920,0.54450934,3300.3,3299.4,0.98059547]
[1768703961122,0.78559813,3300.4,3299.6,0.98059547]
[1768703961920,0.78559813,3300.4,3299.8,0.98059547]
[1768703962418,0.00324495,3300.6,3299.8,0.98059547]
[1768703962816,0.00324495,3300.6,3300.0,0.98059547]
[1768703963011,0.00324495,3300.6,3300.0,0.98311864]
[1768703965220,0.00324495,3300.6,3300.0,0.00252317]
[1768703965415,0.00324495,3300.6,3300.0,0.98311864]
[1768703972031,0.00324495,3300.6,3300.0,0.00252317]
[1768703982736,0.59661306,3301.5,3300.5,0.98059547]
[1768703982927,0.92225195,3301.4,3300.5,0.98059547]
[1768703983128,0.59661306,3301.5,3300.5,0.98059547]
[1768703983832,0.60047937,3301.5,3300.5,0.98059547]
[1768703985230,0.00386631,3301.5,3300.7,0.98059547]
[1768703986024,0.59661306,3302.4,3301.2,0.98059547]
[1768703986323,0.59661306,3302.2,3301.0,0.98059547]
[1768703986524,0.92194934,3302.1,3301.0,0.98059547]
[1768703986727,0.59661306,3302.2,3301.0,0.98059547]
[1768703987127,0.59964753,3302.2,3301.3,0.98059547]
[1768703987829,0.00303447,3302.2,3301.5,0.98059547]
[1768703988033,0.00303447,3302.2,3301.7,0.98059547]
[1768703990134,0.00303447,3302.2,3301.1,0.54932699]
[1768703990336,0.00303447,3302.2,3301.5,0.98059547]
[1768703991530,0.59661306,3303.1,3301.7,0.98059547]
[1768703991730,0.91971386,3303.0,3301.7,0.98059547]
[1768703991930,0.91971386,3302.9,3301.7,0.98059547]
[1768703992131,0.91971386,3302.8,3301.7,0.98059547]
[1768703992429,0.98059547,3303.0,3301.7,0.98059547]
[1768703992430,0.59090896,3302.9,3301.7,0.98059547]
[1768703992630,0.98059547,3301.8,3300.8,0.15154]
[1768703992837,0.59090896,3302.1,3300.9,0.98059547]
[1768703993036,0.59090896,3302.1,3301.1,0.98059547]
[1768703993429,0.59090896,3302.1,3301.0,0.98059547]
[1768703994740,0.59090896,3302.1,3300.5,0.55961792]
[1768703995049,0.59090896,3302.1,3301.1,0.98059547]
[1768703996635,0.59090896,3302.1,3300.5,0.55961792]
[1768703996946,0.59090896,3302.1,3301.0,0.98059547]
[1768703997539,0.59090896,3301.9,3300.5,0.8301112]
[1768704000236,0.59090896,3301.7,3300.5,0.8301112]
[1768704000835,0.59090896,3301.7,3300.5,1.81070667]
[1768704001342,0.59090896,3301.7,3300.7,0.98059547]
[1768704001642,0.59090896,3302.1,3301.0,0.98059547]
[1768704001948,0.59090896,3302.1,3301.3,0.98059547]
[1768704002139,0.98059547,3302.6,3301.3,0.98059547]
[1768704002446,1.51036367,3302.5,3301.3,0.98059547]
[1768704002749,0.59090896,3302.5,3301.3,0.98059547]
[1768704003131,0.98059547,3302.4,3301.1,0.98059547]
[1768704003339,0.59090896,3302.1,3300.6,0.8301112]
[1768704003643,0.59090896,3302.1,3300.3,0.71117792]
[1768704003644,0.59090896,3302.1,3300.7,0.98059547]
[1768704006647,0.59090896,3301.9,3300.5,0.98059547]
[1768704006941,0.59090896,3301.7,3300.4,1.81070667]
[1768704007143,0.59090896,3301.7,3300.6,0.98059547]
[1768704009345,0.59090896,3301.7,3300.4,0.8301112]
[1768704013035,0.59090896,3301.7,3300.2,0.8301112]
[1768704025253,0.61605142,3301.5,3300.2,0.8301112]
[1768704025563,0.61605142,3301.3,3300.2,0.8301112]
[1768704025760,0.61605142,3301.1,3300.0,0.00252317]
[1768704028067,0.61605142,3301.7,3300.0,0.00252317]
[1768704028362,1.53431277,3301.6,3300.0,0.00252317]
[1768704028664,1.53431277,3301.5,3300.0,0.00252317]
[1768704028864,1.53431277,3301.4,3300.0,0.00252317]
[1768704029164,0.91826135,3301.3,3300.0,0.00252317]
[1768704029374,0.91826135,3301.2,3300.0,0.00252317]
[1768704029663,0.61605142,3301.4,3300.0,0.00252317]
[1768704029865,1.53400152,3301.3,3300.0,0.00252317]
[1768704030163,0.9179501,3301.2,3300.0,0.00252317]
[1768704030367,0.61605142,3301.3,3300.0,0.00252317]
[1768704030555,0.91785833,3301.2,3300.0,0.00252317]
[1768704030752,0.61605142,3301.1,3300.0,0.00252317]
[1768704054301,0.58283454,3300.9,3300.0,0.00252317]
[1768704062100,0.58283454,3300.9,3299.6,0.8301112]
[1768704063102,0.58283454,3300.9,3299.6,0.83350922]
[1768704064406,0.58283454,3300.9,3299.6,0.00339802]
[1768704066792,0.58283454,3301.3,3299.6,0.63873919]
[1768704067003,0.58283454,3301.3,3300.1,0.97967552]
[1768704067004,0.91989238,3301.2,3300.1,0.97967552]
[1768704067201,0.91989238,3301.1,3299.7,1.61501669]
[1768704067400,0.58283454,3301.3,3299.7,1.61501669]
[1768704067601,0.91995255,3301.2,3299.7,1.61501669]
[1768704067794,0.91995255,3301.1,3299.7,1.61501669]
[1768704067995,0.58283454,3301.3,3299.7,1.61501669]
[1768704068191,0.91995685,3301.2,3299.7,1.61501669]
[1768704068502,0.91995685,3301.1,3299.7,1.61501669]
[1768704068705,0.58283454,3301.3,3299.7,1.61501669]
[1768704068906,0.91995517,3301.2,3299.7,1.61501669]
[1768704069094,0.91995517,3301.1,3299.7,1.61501669]
[1768704069296,0.58283454,3301.3,3299.7,1.61501669]
[1768704069592,0.91995312,3301.2,3299.7,1.61501669]
[1768704069796,0.91995312,3301.1,3299.7,1.61501669]
[1768704069995,0.58283454,3301.3,3299.7,1.61501669]
[1768704070200,0.91995327,3301.2,3299.7,1.61501669]
[1768704070407,0.91995327,3301.1,3299.8,0.8301112]
[1768704070601,0.58283454,3301.3,3299.8,0.8301112]
[1768704070796,0.92142408,3301.2,3299.8,0.8301112]
[1768704070995,0.58283454,3301.3,3299.8,0.8301112]
[1768704071197,0.92142946,3301.2,3299.8,0.8301112]
[1768704071405,0.58283454,3301.3,3300.2,0.9798561]
[1768704071605,0.92141993,3301.2,3300.2,0.9798561]
[1768704071804,0.58283454,3301.3,3300.2,0.9798561]
[1768704072108,0.92142483,3301.2,3300.2,0.9798561]
[1768704072307,0.58283454,3301.3,3300.2,0.9798561]
[1768704072507,0.92141334,3301.2,3300.2,0.9798561]
[1768704072809,0.58283454,3301.3,3300.2,0.9798561]
[1768704073108,0.92138438,3301.2,3300.2,0.9798561]
[1768704073309,0.58283454,3301.3,3300.2,0.9798561]
[1768704073608,0.92137384,3301.2,3300.2,0.9798561]
[1768704073906,0.58283454,3301.3,3300.2,0.9798561]
[1768704074106,0.92137399,3301.2,3300.2,0.9798561]
[1768704074409,0.58283454,3301.3,3300.2,0.9798561]
[1768704074607,0.92136384,3301.2,3300.2,0.9798561]
[1768704074907,0.58283454,3301.3,3300.2,0.9798561]
[1768704075109,0.92136443,3301.2,3300.2,0.9798561]
[1768704075308,0.58283454,3301.3,3300.2,0.9798561]
[1768704075609,0.92135467,3301.2,3300.2,0.9798561]
[1768704075801,0.92135467,3301.1,3300.2,0.9798561]
[1768704076003,0.58283454,3301.3,3300.2,0.9798561]
[1768704076206,0.9213539,3301.2,3300.2,0.9798561]
[1768704076406,0.9213539,3301.1,3300.2,0.9798561]
[1768704076605,0.58283454,3301.3,3300.2,0.9798561]
[1768704076905,0.92134209,3301.2,3300.2,0.9798561]
[1768704077107,0.58283454,3300.9,3299.9,0.8301112]
[1768704077412,0.9798561,3300.5,3299.6,0.00339802]
[1768704077719,0.9798561,3300.3,3299.6,0.00339802]
[1768704077906,0.00311717,3300.3,3299.6,0.00339802]
[1768704078310,0.58595171,3300.3,3299.0,0.9798561]
[1768704079516,0.58595171,3300.3,3299.0,0.9819807]
[1768704079708,0.58595171,3300.3,3299.2,0.9798561]
[1768704085212,0.56163213,3300.7,3300.0,0.9798561]
[1768704085411,0.56163213,3301.3,3300.0,0.9798561]
[1768704085615,1.48033012,3301.2,3300.0,0.9798561]
[1768704085920,0.56163213,3301.0,3299.3,0.828]
[1768704086109,1.48033012,3300.9,3299.8,0.9798561]
[1768704086409,0.5653633,3300.9,3299.8,0.9798561]
[1768704087408,0.5653633,3300.9,3299.4,0.828]
[1768704087611,0.5653633,3300.9,3299.6,0.9798561]
[1768704088122,0.91873771,3300.8,3299.6,0.9798561]
[1768704088315,0.56163213,3300.8,3299.6,0.9798561]
[1768704090216,0.56163213,3300.8,3299.8,0.9798561]
[1768704095927,0.56163213,3300.8,3299.2,0.828]
[1768704096128,0.56163213,3300.8,3299.8,0.9798561]
[1768704099927,0.00373117,3300.9,3300.0,0.9798561]
[1768704107531,0.59604064,3300.9,3299.0,0.0021246]
[1768704107839,0.59230947,3300.2,3299.0,0.0021246]
[1768704108336,0.59230947,3300.2,3299.1,0.9798561]
[1768704112434,0.59230947,3300.2,3299.3,0.9798561]
[1768704112632,1.57070208,3300.6,3299.3,0.9798561]
[1768704112936,0.92100854,3300.5,3299.3,0.9798561]
[1768704113140,1.57070208,3300.6,3299.3,0.9798561]
[1768704113435,0.92104295,3300.5,3299.3,0.9798561]
[1768704113634,1.57070208,3300.6,3299.3,0.9798561]
[1768704113838,0.92104402,3300.5,3299.3,0.9798561]
[1768704114028,1.57070208,3300.6,3299.3,0.9798561]
[1768704114229,0.92104578,3300.5,3299.3,0.9798561]
[1768704114435,0.59084598,3300.5,3299.3,0.9798561]
[1768704115539,0.59084598,3300.5,3299.0,0.0021246]
[1768704115839,0.59084598,3300.5,3299.2,0.9798561]
[1768704122642,0.59084598,3300.5,3299.0,0.0021246]
[1768704122845,0.59084598,3300.5,3299.1,0.9798561]
[1768704124443,0.59084598,3300.1,3299.0,0.0021246]
[1768704130653,0.59084598,3299.9,3299.0,0.0021246]
[1768704151369,0.57525048,3300.3,3299.0,0.0021246]
[1768704151673,0.91757415,3300.2,3299.0,0.0021246]
[1768704151875,0.91757415,3300.1,3299.0,0.0021246]
[1768704152069,0.57525048,3300.3,3299.0,0.0021246]
[1768704152276,0.91756614,3300.2,3299.0,0.0021246]
[1768704152479,0.91756614,3300.1,3299.0,0.0021246]
[1768704152666,0.57525048,3300.3,3299.0,0.0021246]
[1768704152867,0.91769877,3300.2,3299.0,0.0021246]
[1768704153066,0.57525048,3300.3,3299.0,0.0021246]
[1768704153272,0.91792046,3300.2,3299.0,0.0021246]
[1768704153478,0.57525048,3300.3,3299.0,0.98296532]
[1768704156069,0.00373117,3300.9,3299.0,0.98296532]
[1768704156070,0.55052119,3300.8,3299.0,0.98296532]
[1768704156270,1.46849614,3300.7,3299.0,0.98296532]
[1768704156475,0.91797495,3300.6,3299.0,0.98296532]
[1768704156681,0.91797495,3300.5,3299.0,0.98296532]
[1768704156874,0.55052119,3300.7,3299.0,0.98296532]
[1768704157073,0.91780875,3300.6,3299.0,0.98296532]